Cogmind - Beta 13 @@@ ROGUE MODE // 2024.05.08 @ 08:45:26 Player: Dosh Result: Heading to fleet! Performance ------------- Evolutions (9) 4500 Regions Visited (27) 5400 Robots Destroyed (203) 1015 Value Destroyed (11909) 11909 Prototype IDs (308) 6160 Alien Tech Used (11) 2200 Bonus (46396) 46396 TOTAL SCORE: 77580 Bonus ------- Triggered Max Security 2000 High Alert Combat Kills 2170 Follower Combat Kills 5627 Entered Garrisons 1200 Used RIF Installer 3500 Entered DSFs 500 Network Hubs Disabled 600 Aligned with FarCom 300 Built Enhanced Grunts 300 A7 Reached Mainframe 300 Met R17 at Cetus 500 Used Core Reset Matrix 3000 Scanned by Researcher 500 Pursued by Intercept 500 Integrated Exoskeleton 5000 Destroyed MAIN.C Guards 500 Met MAIN.C 5000 Destroyed MAIN.C Shell 5000 Destroyed MAIN.C 10000 Win 3000 Friendly Fire -3101 Cogmind --------- Core Integrity 82/1600 Matter 300/300 Energy 796/800 System Corruption 3% Temperature Cool (0) Movement Walking (30) Location To Fleet Rendezvous Parts ------- > --- POWER (2) -------- Vortex Chain Reactor > --- PROPULSION (3) --- Sigix Exoskeleton > --- UTILITY (4) ------ Experimental Targeting Computer Quantum Capacitor Improved Shock Absorption System > --- WEAPON (2) ------- Core Cannon > --- INVENTORY (5) ---- Quantum Reactor Light Quantum Reactor Subatomic Replicator Sigix Sheargun Sigix Sheargun Peak State ------------ > --- POWER ------------ Vortex Chain Reactor > --- PROPULSION ------- Sigix Exoskeleton > --- UTILITY ---------- Experimental Targeting Computer Quantum Capacitor Improved Shock Absorption System > --- WEAPON ----------- Core Cannon > --- INVENTORY -------- Quantum Reactor Light Quantum Reactor Subatomic Replicator Sigix Sheargun Sigix Sheargun [Rating: 241] Favorites ----------- Power Quantum Reactor Engine Improved Deuterium Engine Power Core Neutrino Core Reactor Quantum Reactor Propulsion Armored Huge Wheel Treads Light Treads Leg Sigix Exoskeleton Wheel Armored Huge Wheel Flight Unit Field Propulsion Array Utility Cargo Storage Unit Device Remote Force Field Storage Cargo Storage Unit Processor Advanced Targeting Computer Hackware Relay Coupler [Sentry] Protection Layered Light Armor Plating Artifact Phase Redirector Weapon Remote Datajack Energy Gun Precision Shock Rifle Energy Cannon Advanced Plasma Cannon Ballistic Gun Railgun Ballistic Cannon Gauss Cannon Launcher Heavy Rocket Launcher Special Weapon Remote Datajack Impact Weapon Great Maul Slashing Weapon Sigix Broadsword Special Melee Weapon Datajack Build | -11 -10 -10 -10 -9 -8 -8 -8 -8 -7 -7 -6 -6 -6 -6 -6 -6 -5 -5 -4 -4 -3 -3 -2 -2 -2 -1 -1 ------- Run | Yrd Mat Min Exi Min Mat Gar Mat Gar Fac Gar Fac Gar Ext Cet Arc Hub Fac Gar Fac Gar Res DSF Res Qua Sec Acc Com Slots Evolved 18 | . . . . . 4 . . . 2 . 2 . . . . . 2 . 2 . 2 . 2 . . 2 . Power 2 | . . . . . . . . . . . 1 . . . . . . . . . . . . . . 1 . Propulsion 5 | . . . . . . . . . . . . . . . . . 1 . . . 2 . 2 . . . . Utility 10 | . . . . . 4 . . . 1 . 1 . . . . . 1 . 2 . . . . . . 1 . Weapon 1 | . . . . . . . . . 1 . . . . . . . . . . . . . . . . . . Parts Attached 357 | 6 4 1 . 7 26 21 2 36 16 18 18 19 12 7 1 16 38 24 21 3 . 14 8 9 11 4 15 Power 45 | 1 1 . . . 4 1 . 3 . 4 3 1 1 2 . 3 4 6 1 . . 2 . 2 2 1 3 Engine 16 | 1 1 . . . 4 1 . 1 . 1 2 1 1 . . 1 1 . . . . . . . 1 . . Core 12 | . . . . . . . . 2 . 3 1 . . . . . 2 4 . . . . . . . . . Reactor 17 | . . . . . . . . . . . . . . 2 . 2 1 2 1 . . 2 . 2 1 1 3 Propulsion 34 | 2 1 . . . 2 1 1 2 5 . . . . 3 . 1 5 1 2 . . 4 2 1 1 . . Treads 6 | 2 1 . . . . . . . . . . . . 1 . . . . 2 . . . . . . . . Leg . | . . . . . . . . . . . . . . . . . . . . . . . . . . . . Wheel 20 | . . . . . 2 1 1 2 5 . . . . 2 . 1 5 1 . . . . . . . . . Hover . | . . . . . . . . . . . . . . . . . . . . . . . . . . . . Flight 8 | . . . . . . . . . . . . . . . . . . . . . . 4 2 1 1 . . Utility 156 | 1 1 . . 4 6 10 . 10 8 10 12 13 4 1 . 7 14 15 11 2 . 6 5 4 7 2 3 Device 41 | . . . . 2 . 2 . . 1 3 2 3 2 . . 4 6 2 3 . . 1 1 1 5 1 2 Storage 4 | 1 1 . . . 1 . . . . . . . . . . . . . . . . . . . . . 1 Processor 8 | . . . . . 3 . . . . . . . . . . . . . 1 . . . . 1 2 1 . Hackware 61 | . . . . . . 1 . 6 3 6 7 6 1 . . 1 6 9 5 2 . 4 3 1 . . . Protection 41 | . . . . 2 2 7 . 4 4 1 3 4 1 1 . 2 2 4 2 . . 1 1 . . . . Artifact 1 | . . . . . . . . . . . . . . . . . . . . . . . . 1 . . . Weapon 122 | 2 1 1 . 3 14 9 1 21 3 4 3 5 7 1 1 5 15 2 7 1 . 2 1 2 1 1 9 Energy Gun 9 | 1 . 1 . . . . . . . . . 1 . . . . . 1 1 . . . . . . . 4 Energy Cannon 26 | . . . . . 3 . . 2 . . 1 1 . . . 2 7 . 2 . . 1 1 . 1 1 4 Ballistic Gun 27 | 1 1 . . . 4 4 1 7 2 1 . 2 2 1 . . 1 . . . . . . . . . . Ballistic Cannon 7 | . . . . 1 2 1 . 3 . . . . . . . . . . . . . . . . . . . Launcher 11 | . . . . 1 2 1 . . . . . . 1 . . 1 . . 2 1 . 1 . . . . 1 Special Weapon 19 | . . . . 1 . . . . 1 2 2 . 1 . 1 1 6 1 2 . . . . 1 . . . Impact Weapon 19 | . . . . . 3 3 . 6 . 1 . 1 3 . . 1 1 . . . . . . . . . . Slashing Weapon 1 | . . . . . . . . . . . . . . . . . . . . . . . . 1 . . . Piercing Weapon . | . . . . . . . . . . . . . . . . . . . . . . . . . . . . Special Melee Weapon 3 | . . . . . . . . 3 . . . . . . . . . . . . . . . . . . . Unidentified Prototypes 20 | . . . . . 1 . . . . . . . . 3 . 3 1 . 1 . . . . 6 4 . 1 Corrupted Parts 5 | . . . . 4 . . . . . . . . . . . . . . 1 . . . . . . . . System Corruption 20 | . . . . 10 . . . . . . . . . . . . . . 10 . . . . . . . . Parts Lost 69 | . . 1 . . 2 4 . 6 2 2 1 4 . . . 9 10 3 13 . . 5 2 2 3 . . Power 11 | . . . . . 2 . . 1 . 1 . 1 . . . 1 3 1 1 . . . . . . . . Propulsion 12 | . . . . . . . . 2 . . . . . . . 1 1 1 2 . . 2 1 1 1 . . Utility 30 | . . . . . . 3 . 2 1 1 1 2 . . . 4 2 1 7 . . 3 1 1 1 . . Weapon 16 | . . 1 . . . 1 . 1 1 . . 1 . . . 3 4 . 3 . . . . . 1 . . Highest Loss Streak 8 | . . 1 . . 1 3 . 3 1 1 1 1 . . . 8 3 2 5 . . 5 1 1 3 . . To Critical Strikes 2 | . . . . . . . . 1 . . . . . . . . . . 1 . . . . . . . . Average Slot Usage (%) 82 | . 84 85 85 90 82 89 90 84 87 82 85 83 85 86 86 83 82 85 75 19 23 27 55 67 59 61 58 Engine 6 | . 14 14 14 14 8 9 9 4 . 1 11 13 13 4 . . . . . . . . . . . . . Core 1 | . . . . . . . . 1 7 4 1 . . . . . 2 2 . . . . . . . . . Reactor 3 | . . . . . . . . . . . . . . 8 13 12 6 7 7 . . 1 4 4 7 13 17 Treads 3 | . 27 28 28 28 1 . . . . . . . . . . . . . . 10 9 3 . . . . . Wheel 7 | . . . . . 16 18 18 15 11 7 6 6 6 6 6 5 8 10 7 . . . . . . . . Device 4 | . . . . . . 1 . . . 4 6 3 5 6 6 8 8 8 5 . . 1 . 4 8 12 17 Storage 6 | . 14 14 14 14 9 9 9 9 7 7 6 6 6 6 6 6 5 5 4 . . . . . . . . Processor 3 | . . . . . 13 18 18 9 3 . . . . . . . . . 4 . . . . 2 6 9 9 Hackware 17 | . . . . . . . . 18 24 27 26 29 26 26 26 23 25 25 25 8 14 11 24 27 7 . . Protection 5 | . . . . 5 14 15 18 6 7 4 5 3 5 6 6 6 3 2 4 . . 1 . 4 . . . Energy Gun 2 | . 14 14 14 14 . . . . . . . 3 6 2 . . . . 2 . . . . . 11 16 1 Energy Cannon 1 | . . . . . 2 . . . . . . 1 . . . 2 8 4 1 . . . 3 2 . . 3 Ballistic Gun 8 | . 14 14 14 14 7 14 9 11 15 15 13 7 4 10 13 8 1 5 3 . . . . . . . . Special Weapon 3 | . . . . . . . . . 3 5 5 6 5 . 5 5 4 5 4 . . . . 1 1 . . Naked Turns 22 | . . . . . . . . . . . . . . . . . . . 22 . . . . . . . . Heaviest Build 234 | 11 48 48 48 63 175 170 170 174 175 179 197 203 197 211 211 213 220 234 223 12 . 27 36 39 33 43 65 Greatest Support 80 | 40 40 40 40 40 40 26 32 32 28 28 28 28 28 28 28 28 48 44 44 3 3 34 46 42 80 80 80 Greatest Overweight (x) 48 | . 1 1 1 1 6 6 6 9 10 6 7 7 7 7 7 7 12 7 48 3 . . . . . . . Average Overweight (x) 4 | . . 1 1 1 5 5 5 6 8 5 6 6 6 6 7 6 5 4 3 . . . . . . . . Largest Inventory Capacity 30 | 8 20 20 20 20 30 30 30 30 30 30 30 30 30 30 30 30 30 30 30 5 5 5 5 5 5 5 20 Average Capacity 26 | 6 19 20 20 20 29 30 30 30 30 30 30 30 30 30 30 30 30 30 27 5 5 5 5 5 5 5 5 Most Carried 30 | 2 8 13 17 20 30 30 30 30 30 30 30 30 30 30 30 30 30 30 29 5 4 5 5 5 5 5 5 Average Carried 24 | 1 6 10 14 18 26 28 29 25 29 29 28 27 28 29 30 29 27 27 24 4 4 4 4 4 4 3 4 Final Capacity 30 | 8 20 20 20 20 30 30 30 30 30 30 30 30 30 30 30 30 30 30 5 5 5 5 5 5 5 5 5 Final Carried 30 | 2 8 13 17 20 30 30 30 30 30 30 27 28 30 30 30 29 24 29 5 4 4 5 5 5 4 4 5 Class Distribution -------------------- 38% | Botlord-Tank 12% | Bothacker-Mutant 11% | Mutant 10% | Botlord-Mutant 9% | Hauler-Mutant 5% | Alien-Sigix 4% | Bothacker-Tank 3% | Botlord-Gunner Dominant Class ---------------- Mutant | -10/Materials Mutant | -10/Mines Mutant | -10/Exiles Mutant | -9/Mines Hauler-Mutant | -8/Materials Bothacker-Mutant | -8/Garrison Bothacker-Mutant | -8/Materials Bothacker-Mutant | -8/Garrison Bothacker-Mutant | -7/Factory Bothacker-Tank | -7/Garrison Botlord-Tank | -6/Factory Botlord-Tank | -6/Garrison Botlord-Tank | -6/Extension Botlord-Mutant | -6/Cetus Botlord-Tank | -6/Archives Botlord-Tank | -6/Hub_04(d) Botlord-Tank | -5/Factory Botlord-Tank | -5/Garrison Botlord-Tank | -4/Factory Mutant | -4/Garrison Mutant | -3/Research Mutant | -3/DSF Hacker-Sprinter | -2/Research Hacker-Sprinter | -2/Quarantine Alien-Sigix | -2/Section 7 Alien-Sigix | -1/Access Alien-Sigix | -1/Command Resources | -11 -10 -10 -10 -9 -8 -8 -8 -8 -7 -7 -6 -6 -6 -6 -6 -6 -5 -5 -4 -4 -3 -3 -2 -2 -2 -1 -1 ----------- Run | Yrd Mat Min Exi Min Mat Gar Mat Gar Fac Gar Fac Gar Ext Cet Arc Hub Fac Gar Fac Gar Res DSF Res Qua Sec Acc Com Matter Collected 8211 | 214 77 40 . . 737 443 257 532 457 742 594 511 274 177 135 362 705 734 485 . . 4 61 363 176 . 131 Remotely . | . . . . . . . . . . . . . . . . . . . . . . . . . . . . Salvage Created 9659 | . 163 60 . . 778 541 217 341 386 307 622 443 119 107 154 364 1803 625 552 26 . 33 61 353 416 . 1188 Parts 420 | . 12 8 . . 53 28 9 22 31 20 26 22 4 5 11 15 52 33 19 . . 4 6 16 15 . 9 Haulers Intercepted 3 | . . . . . 1 . 2 . . . . . . . . . . . . . . . . . . . . Recyclers Shooed 12 | . . . . . 1 . . . . . 3 . . . . . 8 . . . . . . . . . . Parts Field Recycled . | . . . . . . . . . . . . . . . . . . . . . . . . . . . . Retrieved Matter . | . . . . . . . . . . . . . . . . . . . . . . . . . . . . Parts Self-Destructed . | . . . . . . . . . . . . . . . . . . . . . . . . . . . . Prevented . | . . . . . . . . . . . . . . . . . . . . . . . . . . . . Kills | -11 -10 -10 -10 -9 -8 -8 -8 -8 -7 -7 -6 -6 -6 -6 -6 -6 -5 -5 -4 -4 -3 -3 -2 -2 -2 -1 -1 ------- Run | Yrd Mat Min Exi Min Mat Gar Mat Gar Fac Gar Fac Gar Ext Cet Arc Hub Fac Gar Fac Gar Res DSF Res Qua Sec Acc Com Combat Hostiles Destroyed 143 | . 6 3 . . 17 12 4 9 8 6 8 8 2 . 1 6 14 9 10 3 . 3 . 3 3 . 8 Melee 3 | . . . . . . . . . . . . . . . . . . . . . . . . 3 . . . Guns 66 | . 6 3 . . 3 6 . 8 8 6 7 3 2 . 1 1 . 3 3 . . . . . 3 . 3 Cannons 45 | . . . . . 7 3 4 1 . . . 4 . . . 3 10 6 2 . . . . . . . 5 AOE 25 | . . . . . 7 3 . . . . 1 1 . . . 2 . . 5 3 . 3 . . . . . Classes Destroyed 20 | . 2 1 . . 9 3 . 1 . . 1 . . 1 . 1 . . . . . . . . 1 . . Worker 21 | . . . . . 6 . 1 . 2 . 2 . . . . . 3 . 4 . . . 2 1 . . . Builder 5 | . . . . . 1 . . . 1 . . . . . . . 1 . 1 . . . 1 . . . . Tunneler 2 | . . 1 . . . . . . 1 . . . . . . . . . . . . . . . . . . Hauler 3 | . . . . . 1 . 2 . . . . . . . . . . . . . . . . . . . . Recycler 12 | . . . . . 2 . . . . . 1 . . . . . 6 . . . . . . 1 1 . 1 Mechanic 1 | . . . . . . . . . . . . . . 1 . . . . . . . . . . . . . Operator 3 | . . . . . 1 . . . . . . . . . 2 . . . . . . . . . . . . Watcher 7 | . . . . . 1 . . . 1 . 1 . . . . . 4 . . . . . . . . . . Swarmer 30 | . 3 3 . . 7 . . . 4 1 . . . . . . 2 1 4 3 . . . . . . 2 Cutter 8 | . . . . . . . . 3 . . . . . . . . . 2 . . . 3 . . . . . Grunt 36 | . 3 . . . 3 5 1 5 . 3 2 5 1 . . . 4 1 3 . . . . . . . . Brawler 6 | . . . . . 1 1 . 1 . . 3 . . . . . . . . . . . . . . . . Duelist 2 | . . . . . . 1 . . . . . . . . . . . . 1 . . . . . . . . Protector 1 | . . . . . . . . . . . . . . . . 1 . . . . . . . . . . . Researcher 1 | . . . . . . . . . . . . . . . . . . . . . . . . . 1 . . Sentry 17 | . . . . . 5 1 2 . 1 1 . . 1 . 1 1 1 1 2 . . . . . . . . Demolisher 1 | . . . . . 1 . . . . . . . . . . . . . . . . . . . . . . Specialist 4 | . . . . . . . . . . . 1 . . . . . . 2 1 . . . . . . . . Hunter 6 | . . . . . . 1 1 . . . . . . . . . 2 2 . . . . . . . . . Programmer 25 | . . . . . . 3 . . 3 2 2 3 . . . 1 6 1 . . . . . 3 1 . . M Guard 2 | . . . . . . . . . . . . . . . . . . . . . . . . . . . 2 Lightning 3 | . . . . . . . . . . . . . . . . 3 . . . . . . . . . . . Tracker 2 | . . . . . . . . . . . . . . . . . . . . . . . . . 2 . . Combat Programmer 2 | . . . . . . . . . . . . . . . . . . . . . . . . . . . 2 Savage 1 | . . . . . . . . . . . . . . 1 . . . . . . . . . . . . . Best Kill Streak 8 | . 3 2 . . 8 3 2 3 4 3 4 2 1 . 1 3 6 3 5 3 . 3 1 3 3 . 3 Combat Bots Only 4 | . 3 2 . . 4 3 2 3 3 3 2 2 1 . 1 3 3 3 3 3 . 3 . 3 3 . 3 Max Kills in Single Turn 6 | . 1 1 . . 6 3 1 1 2 2 4 1 1 1 1 2 1 1 4 2 . 2 1 1 1 . 3 Gunslinging . | . . . . . . . . . . . . . . . . . . . . . . . . . . . . Exploded 3 | . . . . . 3 3 . . . . 1 1 . . . 2 . . 2 2 . 2 . . . . . Melee 1 | . . . . . . . . . . . . . . . . . . . . . . . . 1 . . . Uniques/NPCs Destroyed 2 | . . . . . . . . . . . . . . . . . . . . . . . . . . . 2 MAIN.C Shell (-1/Command) MAIN.C (-1/Command) Combat | -11 -10 -10 -10 -9 -8 -8 -8 -8 -7 -7 -6 -6 -6 -6 -6 -6 -5 -5 -4 -4 -3 -3 -2 -2 -2 -1 -1 -------- Run | Yrd Mat Min Exi Min Mat Gar Mat Gar Fac Gar Fac Gar Ext Cet Arc Hub Fac Gar Fac Gar Res DSF Res Qua Sec Acc Com Hostile Shots Fired 1813 | . 34 22 . . 53 80 9 54 56 74 46 88 29 . . 169 221 69 166 27 . 35 28 84 312 . 157 Missed 602 | . 7 4 . . 16 15 3 14 15 23 21 25 15 . . 48 62 17 49 12 . 11 20 43 136 . 46 Damage Taken 21164 | . 274 147 . 47 623 1110 83 628 570 603 288 1079 134 29 . 2253 2082 1141 2536 325 . 1186 186 1056 2092 . 2692 Core 3723 | . 43 75 . 7 90 181 . 59 50 57 36 90 . . . 273 263 155 538 . . 336 . 134 483 . 853 Absorbed by Shields 2193 | . . . . . . 60 . . . 147 197 178 120 27 . 630 250 471 63 . . . . . 50 . . Redirected to Shielding 140 | . . . . . . . . . . . . . . . . 109 . . . . . . . 31 . . . Ignored by Resistances 5057 | . . . . . . . . . . . . . . . . . 749 . . . . 43 . . 1528 . 2737 Regen/Repaired (Parts) 2685 | . 78 . . . 73 . . . 14 . 154 480 160 . . . 504 668 20 . . . . 416 118 . . Core Remaining (%) 55 | 100 . . . 50 . . . 40 . 84 . . . . . 53 . 58 . 53 . 74 . . 36 . 5 Volleys Fired 1066 | . 17 11 . . 61 51 21 36 44 74 63 71 29 15 15 40 174 108 61 2 . 2 18 30 16 14 93 Largest 3 | . 2 2 . . 2 2 2 2 2 2 2 2 2 2 2 3 2 2 2 1 . 2 1 1 2 2 1 Hottest 300 | . 70 70 . . 108 71 71 120 66 68 120 105 90 70 70 175 188 131 240 52 . 140 120 120 200 300 300 Shots Fired 1497 | . 31 21 . . 102 102 41 52 72 113 90 90 36 30 28 53 194 152 88 2 . 3 18 30 34 22 93 Gun 799 | . 31 21 . . 39 87 21 47 56 79 53 51 18 30 26 21 5 49 46 . . . . . 34 20 65 Cannon 445 | . . . . . 57 14 20 5 . . 1 8 . . . 20 153 67 21 . . 1 18 30 . 2 28 Launcher 16 | . . . . . 6 1 . . . . . . 1 . . . . . 4 2 . 2 . . . . . Special 237 | . . . . . . . . . 16 34 36 31 17 . 2 12 36 36 17 . . . . . . . . Kinetic 682 | . 17 11 . . 79 101 41 48 56 79 53 31 11 30 26 21 5 47 26 . . . . . . . . Thermal 365 | . 14 10 . . 17 . . 4 . . 1 8 . . . 20 103 69 41 . . . 18 30 . 2 28 Explosive 16 | . . . . . 6 1 . . . . . . 1 . . . . . 4 2 . 2 . . . . . Electromagnetic 78 | . . . . . . . . . . . . 20 7 . . . 50 . . . . 1 . . . . . Slashing 119 | . . . . . . . . . . . . . . . . . . . . . . . . . 34 20 65 Robot Hit Streak 32 | . 18 5 . . 32 12 15 16 11 10 9 6 7 10 6 5 9 17 16 . . 1 5 2 2 . 32 Robot Miss Streak 5 | . 1 3 . . 3 1 1 1 5 5 4 2 2 2 3 5 4 3 5 2 . 3 2 1 4 2 1 Penetration Max 2 | . . . . . 1 . 1 . 1 2 2 . 1 1 1 1 . 1 . . . . . . 1 . 2 Secondary Targets 3 | . . . . . . . . . 2 . . 1 . . . . . . . . . . . . . . . Max Gunslinging Chain 1 | . . . . . . . . . 1 . . 1 . . . . . . . . . . . . . . . Capacitor 99 | . . . . . . . . . . . . . . . . . . . . . . . . . . 6 93 Shots Hit Robots 933 | . 25 11 . . 74 71 33 59 43 54 51 53 27 21 17 24 112 83 63 . . 1 9 14 12 . 76 Core Hits 323 | . 9 6 . . 43 25 9 18 15 16 17 10 4 9 6 8 26 20 38 3 . 2 3 5 7 . 24 Critical Kills 14 | . . . . . 2 . . 1 . . 1 . . 1 1 1 3 2 1 . . . . . . . 1 Critical Parts Destroyed 21 | . . . . . . . . . 2 1 1 . . 1 1 1 1 4 . . . . . . . . 9 Critical Strikes 57 | . . 1 . . 5 2 2 1 2 1 2 . 1 2 3 2 7 6 1 . . . . . . . 19 Burn 1 | . . 1 . . . . . . . . . . . . . . . . . . . . . . . . . Meltdown 3 | . . . . . . . . . . . . . . . . . 3 . . . . . . . . . . Destroy 38 | . . . . . 1 . . 1 2 1 2 . . 2 3 2 . 6 1 . . . . . . . 17 Blast 7 | . . . . . 3 2 2 . . . . . . . . . . . . . . . . . . . . Corrupt 4 | . . . . . . . . . . . . . 1 . . . 3 . . . . . . . . . . Smash 2 | . . . . . 1 . . . . . . . . . . . 1 . . . . . . . . . . Sever 2 | . . . . . . . . . . . . . . . . . . . . . . . . . . . 2 Melee Attacks 92 | . . . . . 6 4 . 38 . 3 . 4 6 . . . 4 . . . . . . 19 8 . . Impact 44 | . . . . . 6 4 . 17 . 3 . 4 6 . . . 4 . . . . . . . . . . Slashing 27 | . . . . . . . . . . . . . . . . . . . . . . . . 19 8 . . Piercing . | . . . . . . . . . . . . . . . . . . . . . . . . . . . . Sneak Attacks 24 | . . . . . . . . 18 . . . . . . . . 4 . . . . . . . 2 . . Combat Hostiles 11 | . . . . . . . . 11 . . . . . . . . . . . . . . . . . . . Follow-up Attacks . | . . . . . . . . . . . . . . . . . . . . . . . . . . . . Damage Inflicted 34610 | . 270 121 . 1 2472 1500 774 628 900 1074 925 897 291 751 469 664 4023 1822 2657 386 . 373 389 893 1229 . 11101 Guns 13794 | . 270 103 . . 528 941 250 600 900 1074 925 589 291 751 469 330 21 643 823 . . . . . 785 . 3501 Cannons 16124 | . . . . . 1049 264 524 28 . . . 308 . . . 334 3490 1179 693 . . . 389 266 . . 7600 Explosions 3046 | . . . . . 817 219 . . . . . . . . . . 110 . 1141 386 . 373 . . . . . Melee 1545 | . . . . . 31 76 . . . . . . . . . . 402 . . . . . . 627 409 . . Ramming 101 | . . 18 . 1 47 . . . . . . . . . . . . . . . . . . . 35 . . Kinetic 10449 | . 106 63 . . 1344 1205 774 628 900 1074 925 462 212 751 469 330 21 612 573 . . . . . . . . Thermal 14079 | . 164 40 . . 233 . . . . . . 308 . . . 334 2592 1210 943 . . . 389 266 . . 7600 Explosive 2936 | . . . . . 817 219 . . . . . . . . . . . . 1141 386 . 373 . . . . . Electromagnetic 1214 | . . . . . . . . . . . . 127 79 . . . 1008 . . . . . . . . . . Impact 509 | . . . . . 31 76 . . . . . . . . . . 402 . . . . . . . . . . Slashing 5322 | . . . . . . . . . . . . . . . . . . . . . . . . 627 1194 . 3501 Piercing . | . . . . . . . . . . . . . . . . . . . . . . . . . . . . Highest Corruption 21 | . . . . 10 . 4 . 1 2 2 7 2 . . . 21 11 10 12 12 . 6 4 9 4 . 3 Average Corruption 6 | . . . . 7 . 3 . 1 1 1 5 1 . . . 12 7 8 10 12 . 4 1 6 1 . 2 Corruption Purged 19 | . . . . . . 4 . . . 2 7 3 . . . . 3 . . . . . . . . . . Corruption Blocked . | . . . . . . . . . . . . . . . . . . . . . . . . . . . . Effects 269 | . . . . 1 . 4 . 1 7 20 14 3 . . . 26 48 89 16 3 . . . 10 7 . 20 Message Errors 68 | . . . . 1 . 3 . . 3 5 5 1 . . . 9 8 27 . 1 . . . 2 . . 3 Matter Fused 54 | . . . . . . . . . . 8 3 1 . . . 9 9 12 3 1 . . . 3 2 . 3 Heat Flow Errors 41 | . . . . . . 1 . 1 . 4 1 . . . . 2 8 12 5 1 . . . 1 . . 5 Energy Discharges 24 | . . . . . . . . . 1 1 . . . . . 1 8 8 3 . . . . 1 . . 1 Parts Rejected 3 | . . . . . . . . . 1 . 1 . . . . . . . . . . . . . 1 . . Parts Fused 3 | . . . . . . . . . . . . . . . . . . 2 . . . . . . 1 . . Data Loss (minor) 31 | . . . . . . . . . 1 2 3 . . . . 3 4 11 1 . . . . 2 1 . 3 Data Loss (major) 13 | . . . . . . . . . . . . 1 . . . 2 4 3 1 . . . . . . . 2 Misfires 17 | . . . . . . . . . . . 1 . . . . . 5 8 . . . . . . 2 . 1 Alerts 7 | . . . . . . . . . 1 . . . . . . . . 3 1 . . . . 1 . . 1 Misdirections 4 | . . . . . . . . . . . . . . . . . . 2 2 . . . . . . . . Weapon Failures 4 | . . . . . . . . . . . . . . . . . 2 1 . . . . . . . . 1 Overload Shots . | . . . . . . . . . . . . . . . . . . . . . . . . . . . . Overflow Damage 1667 | . . . . . 43 54 5 . . . . . . . . . 524 . . . . 44 47 80 80 . 790 Projectiles 1110 | . . . . . 29 18 5 . . . . . . . . . 212 . . . . . 47 9 . . 790 Explosions 51 | . . . . . 7 . . . . . . . . . . . . . . . . 44 . . . . . Melee 506 | . . . . . 7 36 . . . . . . . . . . 312 . . . . . . 71 80 . . Knockbacks 15 | . . . . . 4 4 6 . . . . . . . . . 1 . . . . . . . . . . Impact 2 | . . . . . . 1 . . . . . . . . . . 1 . . . . . . . . . . Kinetic 12 | . . . . . 4 2 6 . . . . . . . . . . . . . . . . . . . . Secondary 1 | . . . . . . 1 . . . . . . . . . . . . . . . . . . . . . Self-Inflicted Damage 214 | . . . . . 23 . . . . . . . . . . . . . . 62 . 94 . . 35 . . Shots 2 | . . . . . . . . . . . . . . . . . . . . 1 . 1 . . . . . Rammed 8 | . . 4 . 3 1 . . . . . . . . . . . . . . . . . . . . . . Targets Rammed 8 | . . 4 . 3 1 . . . . . . . . . . . . . . . . . . . . . . Kicked . | . . . . . . . . . . . . . . . . . . . . . . . . . . . . Crushed . | . . . . . . . . . . . . . . . . . . . . . . . . . . . . Highest Temperature 505 | . 234 90 . . 190 273 117 234 90 194 169 390 94 285 96 451 438 505 449 108 . . 366 173 . 179 416 Average Temperature 92 | . 94 35 . . 42 48 40 67 25 26 34 77 35 148 47 195 144 77 124 65 . . 168 59 . 118 135 Received Heat Transfer 2857 | . 108 . . . 180 213 36 216 66 131 27 292 12 . . 82 220 115 376 27 . 9 . 9 123 . 615 Effects 28 | . 1 . . . . . . . . . . 1 . 1 . 7 7 2 2 . . . 1 . . . 6 Shutdowns 11 | . . . . . . . . . . . . . . . . 2 2 1 1 . . . 1 . . . 4 Energy Bleed 1 | . . . . . . . . . . . . . . . . 1 . . . . . . . . . . . Interference 10 | . 1 . . . . . . . . . . 1 . 1 . 2 3 . . . . . . . . . 2 Matter Decay 2 | . . . . . . . . . . . . . . . . . 1 . 1 . . . . . . . . Short Circuit 3 | . . . . . . . . . . . . . . . . 1 1 1 . . . . . . . . . Damage (minor) 1 | . . . . . . . . . . . . . . . . 1 . . . . . . . . . . . Siege Activations . | . . . . . . . . . . . . . . . . . . . . . . . . . . . . Robots Corrupted 3 | . . . . . . . . . . . . . . . . . 3 . . . . . . . . . . Combat Hostiles 2 | . . . . . . . . . . . . . . . . . 2 . . . . . . . . . . Parts Fried 17 | . . . . . . . . . . . . . . . . . 17 . . . . . . . . . . Impact Corruptions 8 | . . . . . 1 2 . . . . . . . . . . 5 . . . . . . . . . . Robots Melted 4 | . . . . . . . . . . . . . . . . . 4 . . . . . . . . . . Combat Hostiles 2 | . . . . . . . . . . . . . . . . . 2 . . . . . . . . . . Parts Melted 28 | . 1 1 . . . . . . . . . . 1 . . 2 14 5 2 . . . . 2 . . . Heat Transferred 7766 | . 444 185 . . 481 . . . . . . 259 . . . 444 2918 1687 793 . . . 333 222 . . . Parts Sabotaged 4 | . . . . . . . . . . . . . . . . . . . 4 . . . . . . . . Parts Stolen . | . . . . . . . . . . . . . . . . . . . . . . . . . . . . Parts Stripped . | . . . . . . . . . . . . . . . . . . . . . . . . . . . . Power Chain Reactions 1 | . . . . . . . . . . . . . . . . . 1 . . . . . . . . . . Alert | -11 -10 -10 -10 -9 -8 -8 -8 -8 -7 -7 -6 -6 -6 -6 -6 -6 -5 -5 -4 -4 -3 -3 -2 -2 -2 -1 -1 ------- Run | Yrd Mat Min Exi Min Mat Gar Mat Gar Fac Gar Fac Gar Ext Cet Arc Hub Fac Gar Fac Gar Res DSF Res Qua Sec Acc Com Peak Influence 2216 | . 165 60 . 10 383 536 333 525 311 1011 762 914 571 217 264 324 548 2216 1494 883 496 512 369 568 1966 1823 1416 Initial 1179 | . . 12 . . . 134 261 3 275 98 530 300 479 97 65 . 70 383 1163 735 496 372 282 72 141 1179 1166 Average 376 | . 27 13 . 3 151 359 118 227 175 594 566 559 194 157 148 141 190 1128 1204 797 496 482 262 288 888 1605 1252 Maximum Alert Level 5 | . . . . . 1 2 1 2 1 3 3 3 2 1 1 1 2 5 4 3 2 2 1 2 5 5 5 Low Security (%) 45 | 100 100 100 . 100 58 14 80 53 65 5 . . 73 43 58 81 67 . . . . . 29 36 18 . . Level 1 16 | . . . . . 41 32 19 19 34 13 5 13 3 56 41 18 12 1 . . . 8 70 37 25 . . Level 2 20 | . . . . . . 52 . 26 . 44 84 60 23 . . . 20 25 2 . 100 91 . 25 12 . . Level 3 6 | . . . . . . . . . . 36 10 25 . . . . . 20 28 100 . . . . . . . Level 4 5 | . . . . . . . . . . . . . . . . . . 32 69 . . . . . . 14 31 Level 5 4 | . . . . . . . . . . . . . . . . . . 18 . . . . . . . . 68 High Security . | . . . . . . . . . . . . . . . . . . . . . . . . . . . . Max Security . | . . . . . . . . . . . . . . . . . . . . . . . . . 42 85 . Squads Dispatched 78 | . 1 . . . 5 . . . 6 . 8 . 1 . . 5 9 . 10 . . 1 1 1 18 12 . Investigation 9 | . 1 . . . 1 . . . . . . . 1 . . 1 4 . . . . . 1 . . . . Extermination 9 | . . . . . . . . . 2 . 2 . . . . 2 2 . 1 . . . . . . . . Reinforcement 14 | . . . . . 1 . . . 2 . 3 . . . . . 3 . 1 . . 1 . 1 2 . . Assault 33 | . . . . . . . . . . . 2 . . . . 1 . . 5 . . . . . 13 12 . Garrison 10 | . . . . . 3 . . . 2 . 1 . . . . 1 . . 3 . . . . . . . . Intercept 3 | . . . . . . . . . . . . . . . . . . . . . . . . . 3 . . Searches Triggered . | . . . . . . . . . . . . . . . . . . . . . . . . . . . . Construction Impeded . | . . . . . . . . . . . . . . . . . . . . . . . . . . . . Haulers Reinforced 1 | . . . . . . . . . . . 1 . . . . . . . . . . . . . . . . Active Scanning Responses . | . . . . . . . . . . . . . . . . . . . . . . . . . . . . Cargo Convoy Interrupts . | . . . . . . . . . . . . . . . . . . . . . . . . . . . . Stealth | -11 -10 -10 -10 -9 -8 -8 -8 -8 -7 -7 -6 -6 -6 -6 -6 -6 -5 -5 -4 -4 -3 -3 -2 -2 -2 -1 -1 --------- Run | Yrd Mat Min Exi Min Mat Gar Mat Gar Fac Gar Fac Gar Ext Cet Arc Hub Fac Gar Fac Gar Res DSF Res Qua Sec Acc Com Distress Signals 54 | . . . . . 2 . . . 1 . 1 . 1 2 . 3 1 . . . . . . 4 4 1 34 Communications Jammed 654 | . . . . . . . . . . . 26 . 120 240 . 73 58 . 101 . . . 17 19 . . . Distress Signals 654 | . . . . . . . . . . . 26 . 120 240 . 73 58 . 101 . . . 17 19 . . . Times Spotted 606 | . 6 6 . . 32 11 5 19 27 34 40 28 26 10 10 32 75 51 48 10 . 8 6 35 61 4 22 Peak Tracking Total 34 | . 3 3 . . 4 5 2 3 3 6 7 5 4 5 2 6 7 6 9 10 . 4 4 12 34 14 15 Tactical Retreats 38 | . 1 1 . . . 1 . 1 . 2 2 . . . . . 9 . 3 . . 1 1 7 7 1 1 Traps | -11 -10 -10 -10 -9 -8 -8 -8 -8 -7 -7 -6 -6 -6 -6 -6 -6 -5 -5 -4 -4 -3 -3 -2 -2 -2 -1 -1 ------- Run | Yrd Mat Min Exi Min Mat Gar Mat Gar Fac Gar Fac Gar Ext Cet Arc Hub Fac Gar Fac Gar Res DSF Res Qua Sec Acc Com Traps Triggered 30 | . . . . . . 4 . 1 1 2 . 2 4 . . . 2 9 . 1 . 1 . 1 2 . . Indirectly . | . . . . . . . . . . . . . . . . . . . . . . . . . . . . Trap Hack Attempts . | . . . . . . . . . . . . . . . . . . . . . . . . . . . . Triggered . | . . . . . . . . . . . . . . . . . . . . . . . . . . . . Disarmed 2 | . . . . . . . . . . . . . 2 . . . . . . . . . . . . . . Reprogrammed . | . . . . . . . . . . . . . . . . . . . . . . . . . . . . Reused 2 | . . . . . . . 1 1 . . . . . . . . . . . . . . . . . . . Traps Extracted . | . . . . . . . . . . . . . . . . . . . . . . . . . . . . Installed 3 | . . . . . . . 1 2 . . . . . . . . . . . . . . . . . . . Triggered 4 | . . . . 1 . . 1 1 . . . . . . . . 1 . . . . . . . . . . Most Traps Carried 9 | . . 5 5 5 5 9 9 7 4 4 4 4 4 4 4 4 4 4 4 . . . . . . . . Machines | -11 -10 -10 -10 -9 -8 -8 -8 -8 -7 -7 -6 -6 -6 -6 -6 -6 -5 -5 -4 -4 -3 -3 -2 -2 -2 -1 -1 ---------- Run | Yrd Mat Min Exi Min Mat Gar Mat Gar Fac Gar Fac Gar Ext Cet Arc Hub Fac Gar Fac Gar Res DSF Res Qua Sec Acc Com Machines Disabled 80 | . . . . . 2 3 . 3 1 5 6 7 1 . 3 8 4 6 2 . . . 1 9 9 5 5 Max in Single Turn 2 | . . . . . 1 1 . 1 1 1 1 1 . . . 1 1 1 1 . . . 1 1 2 2 1 Garrison Access 5 | . . . . . . . . . . . 1 . . . . 1 2 . . . . . . 1 . . . Garrison Relay 16 | . . . . . . 2 . 2 . 4 . 4 . . . . . 4 . . . . . . . . . Network Hub 3 | . . . . . . . . . . . . . . . . 3 . . . . . . . . . . . Machines Repaired . | . . . . . . . . . . . . . . . . . . . . . . . . . . . . Machines Dismantled . | . . . . . . . . . . . . . . . . . . . . . . . . . . . . Machines Sabotaged . | . . . . . . . . . . . . . . . . . . . . . . . . . . . . Overloaded Fab Kills . | . . . . . . . . . . . . . . . . . . . . . . . . . . . . Hacking | -11 -10 -10 -10 -9 -8 -8 -8 -8 -7 -7 -6 -6 -6 -6 -6 -6 -5 -5 -4 -4 -3 -3 -2 -2 -2 -1 -1 --------- Run | Yrd Mat Min Exi Min Mat Gar Mat Gar Fac Gar Fac Gar Ext Cet Arc Hub Fac Gar Fac Gar Res DSF Res Qua Sec Acc Com Machines Accessed 115 | . 5 1 2 1 12 1 6 4 9 2 5 2 13 1 . 10 13 3 5 . 1 . 4 6 5 . 4 Terminals 81 | . 3 1 . . 9 1 5 4 4 2 2 2 12 1 . 9 3 3 3 . 1 . 2 5 5 . 4 Fabricators 7 | . . . . . . . . . 2 . 1 . . . . . 3 . 1 . . . . . . . . Repair Stations 9 | . 1 . . . 1 . . . 2 . . . 1 . . . 3 . . . . . 1 . . . . Recycling Units 1 | . 1 . . . . . . . . . . . . . . . . . . . . . . . . . . Scanalyzers 2 | . . . . . 1 . . . . . . . . . . . 1 . . . . . . . . . . Garrison Access 12 | . . . . . 1 . 1 . 1 . 2 . . . . 1 3 . 1 . . . 1 1 . . . Total Hacks 358 | . 12 2 2 1 38 3 19 8 20 5 9 7 24 1 . 30 68 21 22 . 1 . 16 37 8 . 4 Successful 164 | . 8 . 2 1 23 1 10 5 7 2 5 1 11 1 . 16 33 3 12 . 1 . 6 9 5 . 2 Failed 194 | . 4 2 . . 15 2 9 3 13 3 4 6 13 . . 14 35 18 10 . . . 10 28 3 . 2 Catastrophic 40 | . . . . . 1 . 1 1 1 . . 2 3 . . 2 4 5 4 . . . 3 9 2 . 2 Database Lockouts . | . . . . . . . . . . . . . . . . . . . . . . . . . . . . Manual 170 | . 7 2 1 . 24 . 13 4 6 . 4 2 2 1 . 19 22 10 12 . . . 8 31 2 . . Terminals 258 | . 9 2 . . 28 3 18 8 8 5 4 7 21 1 . 29 23 21 15 . 1 . 7 36 8 . 4 Fabricators 33 | . . . . . . . . . 4 . 2 . . . . . 21 . 6 . . . . . . . . Repair Stations 34 | . 2 . . . 2 . . . 7 . . . 3 . . . 13 . . . . . 7 . . . . Recycling Units 1 | . 1 . . . . . . . . . . . . . . . . . . . . . . . . . . Scanalyzers 14 | . . . . . 6 . . . . . . . . . . . 8 . . . . . . . . . . Garrison Access 15 | . . . . . 2 . 1 . 1 . 3 . . . . 1 3 . 1 . . . 2 1 . . . Terminal Hacks 80 | . 5 . 2 1 7 1 6 3 . 2 1 1 8 1 . 9 8 3 5 . 1 . 4 6 4 . 2 Record 1 | . . . 1 . . . . . . . . . . . . . . . . . . . . . . . . Part Schematic 1 | . 1 . . . . . . . . . . . . . . . . . . . . . . . . . . Robot Schematic 2 | . 1 . . . . . . . . . . . . . . 1 . . . . . . . . . . . Robot Analysis 5 | . 2 . . . 1 . . . . . . . . . . 2 . . . . . . . . . . . Prototype ID Bank 7 | . 1 . . . 2 . 1 . . . . . 1 . . . . . . . . . . 1 . . 1 Open Door 12 | . . . . 1 . . . . . 1 . . 4 1 . . . 1 . . . . . . 3 . 1 Open DSF 2 | . . . . . . . . . . . . . . . . . . . . . 1 . 1 . . . . Branch Access Points 2 | . . . . . . . . . . . . . . . . . . . . . . . 1 1 . . . Emergency Access Points 2 | . . . . . . . . . . 1 . . . . . . . 1 . . . . . . . . . Terminal Index 2 | . . . . . . . . . . . . . . . . 1 1 . . . . . . . . . . Fabricator Index 1 | . . . . . . . . . . . . . . . . . 1 . . . . . . . . . . Repair Station Index 1 | . . . . . . . . . . . . . . . . . 1 . . . . . . . . . . Garrison Index 1 | . . . . . . . . . . . . . . . . . 1 . . . . . . . . . . Alert Level 3 | . . . . . 1 . . . . . . . . . . . . . . . . . . 1 1 . . Unreport Threat 17 | . . . . . 1 . 2 1 . . 1 . 2 . . 1 1 . 4 . . . 2 2 . . . Locate Traps 3 | . . . . . . . 1 . . . . . . . . 1 1 . . . . . . . . . . Disarm Traps 1 | . . . . . . . . . . . . . 1 . . . . . . . . . . . . . . Dispatch Records 1 | . . . . . . . 1 . . . . . . . . . . . . . . . . . . . . Patrol Status 2 | . . . . . . . . . . . . . . . . 1 1 . . . . . . . . . . Recall Extermination 1 | . . . . . . . . . . . . . . . . . . . 1 . . . . . . . . Hauler Manifests 3 | . . . . . 1 . . . . . . . . . . 1 1 . . . . . . . . . . Registered Prototypes 1 | . . . . . . . 1 . . . . . . . . . . . . . . . . . . . . Zone Layout 3 | . . . . . 1 . . . . . . . . . . 1 . . . . . . . 1 . . . Garrison Registry 2 | . . . . . . 1 . 1 . . . . . . . . . . . . . . . . . . . Security Stations 3 | . . . . . . . . 1 . . . 1 . . . . . 1 . . . . . . . . . Derelict Proto ID Bank 1 | . . . 1 . . . . . . . . . . . . . . . . . . . . . . . . Fabricator Hacks 10 | . . . . . . . . . 2 . 1 . . . . . 5 . 2 . . . . . . . . Network Status 3 | . . . . . . . . . 1 . . . . . . . 1 . 1 . . . . . . . . Load Schematic 3 | . . . . . . . . . . . . . . . . . 3 . . . . . . . . . . Build 4 | . . . . . . . . . 1 . 1 . . . . . 1 . 1 . . . . . . . . Repair Station Hacks 16 | . 2 . . . 2 . . . 3 . . . 2 . . . 7 . . . . . . . . . . Scan Component 9 | . 1 . . . 1 . . . 2 . . . 1 . . . 4 . . . . . . . . . . Repair 7 | . 1 . . . 1 . . . 1 . . . 1 . . . 3 . . . . . . . . . . Recycling Unit Hacks . | . . . . . . . . . . . . . . . . . . . . . . . . . . . . Scanalyzer 9 | . . . . . 6 . . . . . . . . . . . 3 . . . . . . . . . . Insert Component 3 | . . . . . 2 . . . . . . . . . . . 1 . . . . . . . . . . Analyze 6 | . . . . . 4 . . . . . . . . . . . 2 . . . . . . . . . . Garrison Access Hacks 12 | . . . . . 1 . 1 . 1 . 3 . . . . 1 3 . 1 . . . . 1 . . . Unlock Access 7 | . . . . . 1 . 1 . 1 . 1 . . . . 1 1 . 1 . . . . . . . . Seal Access 4 | . . . . . . . . . . . 1 . . . . . 2 . . . . . . 1 . . . Coupler Status 1 | . . . . . . . . . . . 1 . . . . . . . . . . . . . . . . Unauthorized Hacks 37 | . 1 . . . 7 . 3 2 1 . . . 1 . . 6 7 . 4 . . . 2 2 1 . . Terminals 28 | . . . . . 7 . 3 2 1 . . . 1 . . 6 4 . . . . . 1 2 1 . . Track 3 | . . . . . . . . . . . . . . . . 2 1 . . . . . . . . . . Assimilate 6 | . . . . . 5 . . . . . . . . . . . . . . . . . . . 1 . . Botnet 14 | . . . . . 2 . 2 1 1 . . . 1 . . 3 1 . . . . . 1 2 . . . Disrupt 2 | . . . . . . . . 1 . . . . . . . . 1 . . . . . . . . . . Operators 2 | . . . . . . . 1 . . . . . . . . . 1 . . . . . . . . . . Sabotage 1 | . . . . . . . . . . . . . . . . 1 . . . . . . . . . . . Fabricators 6 | . . . . . . . . . . . . . . . . . 2 . 4 . . . . . . . . Report 1 | . . . . . . . . . . . . . . . . . . . 1 . . . . . . . . Prioritize 2 | . . . . . . . . . . . . . . . . . 1 . 1 . . . . . . . . Liberate 2 | . . . . . . . . . . . . . . . . . 1 . 1 . . . . . . . . Haulers 1 | . . . . . . . . . . . . . . . . . . . 1 . . . . . . . . Repair Stations 1 | . . . . . . . . . . . . . . . . . 1 . . . . . . . . . . Mechanics 1 | . . . . . . . . . . . . . . . . . 1 . . . . . . . . . . Recycling Units 1 | . 1 . . . . . . . . . . . . . . . . . . . . . . . . . . Tunnel 1 | . 1 . . . . . . . . . . . . . . . . . . . . . . . . . . Scanalyzers . | . . . . . . . . . . . . . . . . . . . . . . . . . . . . Garrison Access 1 | . . . . . . . . . . . . . . . . . . . . . . . 1 . . . . Eject 1 | . . . . . . . . . . . . . . . . . . . . . . . 1 . . . . Data Cores Recovered . | . . . . . . . . . . . . . . . . . . . . . . . . . . . . Used . | . . . . . . . . . . . . . . . . . . . . . . . . . . . . Hacking Detections 74 | . 4 1 . . 10 1 4 3 8 1 3 2 11 . . 8 5 2 3 . . . 2 3 . . 3 Full Trace Events 8 | . . . . . 1 . . 1 . . . 2 1 . . . 3 . . . . . . . . . . Feedback Events 1 | . . . . . . . . . . . . 1 . . . . . . . . . . . . . . . Corruption 1 | . . . . . . . . . . . . 1 . . . . . . . . . . . . . . . Feedback Blocked . | . . . . . . . . . . . . . . . . . . . . . . . . . . . . Robot Schematics Acquired 3 | . 1 . . . . . . . . . . . . . . 1 . . . . . . . . 1 . . Robots Built 2 | . . . . . . . . . . . . . . . . . 1 . 1 . . . . . . . . Authchips . | . . . . . . . . . . . . . . . . . . . . . . . . . . . . Time 119 | . . . . . . . . . . . . . . . . . 38 . 81 . . . . . . . . Total Robot Build Rating 4 | . . . . . . . . . . . . . . . . . 3 . 1 . . . . . . . . Part Schematics Acquired 5 | . 1 . . . 2 . . . . . . . . . . . 1 . . . . . . . 1 . . Parts Built 4 | . . . . . . . . . 2 . 2 . . . . . . . . . . . . . . . . Authchips . | . . . . . . . . . . . . . . . . . . . . . . . . . . . . Time 212 | . . . . . . . . . 106 . 106 . . . . . . . . . . . . . . . . Total Part Build Rating 24 | . . . . . . . . . 12 . 12 . . . . . . . . . . . . . . . . Parts Repaired 6 | . 1 . . . 1 . . . 1 . . . 1 . . . 2 . . . . . . . . . . Time 295 | . 26 . . . 44 . . . 61 . . . 56 . . . 108 . . . . . . . . . . Parts Recycled . | . . . . . . . . . . . . . . . . . . . . . . . . . . . . Recycled Matter . | . . . . . . . . . . . . . . . . . . . . . . . . . . . . Retrieved Matter . | . . . . . . . . . . . . . . . . . . . . . . . . . . . . Retrieved Components . | . . . . . . . . . . . . . . . . . . . . . . . . . . . . Parts Scanalyzed 3 | . . . . . 2 . . . . . . . . . . . 1 . . . . . . . . . . Part Schematics Acquired 3 | . . . . . 2 . . . . . . . . . . . 1 . . . . . . . . . . Parts Damaged . | . . . . . . . . . . . . . . . . . . . . . . . . . . . . Bothacking | -11 -10 -10 -10 -9 -8 -8 -8 -8 -7 -7 -6 -6 -6 -6 -6 -6 -5 -5 -4 -4 -3 -3 -2 -2 -2 -1 -1 ------------ Run | Yrd Mat Min Exi Min Mat Gar Mat Gar Fac Gar Fac Gar Ext Cet Arc Hub Fac Gar Fac Gar Res DSF Res Qua Sec Acc Com Used RIF Installer 7 | . . . . . . 1 . 2 . 1 . 2 . . . . . 1 . . . . . . . . . Coupler Efficiency 1 | . . . . . . . . . . . . . . . . . . 1 . . . . . . . . . Code Merge 1 | . . . . . . . . . . 1 . . . . . . . . . . . . . . . . . Signal Jammer 1 | . . . . . . . . 1 . . . . . . . . . . . . . . . . . . . Zone Cloak 2 | . . . . . . . . 1 . . . 1 . . . . . . . . . . . . . . . Autooverride 1 | . . . . . . . . . . . . 1 . . . . . . . . . . . . . . . Robots Hacked 123 | . . . . . . . . 3 8 14 15 16 7 . 1 8 24 18 8 . . . . 1 . . . Non-combat 20 | . . . . . . . . . 2 . 5 . 3 . 1 2 6 . 1 . . . . . . . . Combat 103 | . . . . . . . . 3 6 14 10 16 4 . . 6 18 18 7 . . . . 1 . . . Autooverrided 15 | . . . . . . . . . . . . 1 2 . . 1 5 4 1 . . . . 1 . . . Robot Hacks Applied 123 | . . . . . . . . 3 9 15 20 17 6 . 1 8 21 16 7 . . . . . . . . parse_system 4 | . . . . . . . . . . 2 1 . . . . . . 1 . . . . . . . . . no_distress 2 | . . . . . . . . . 1 . . . 1 . . . . . . . . . . . . . . drop_inventory 6 | . . . . . . . . . . . 2 . . . . 1 3 . . . . . . . . . . check_alert 1 | . . . . . . . . . . . . . . . 1 . . . . . . . . . . . . purge_threat 3 | . . . . . . . . . . . 3 . . . . . . . . . . . . . . . . block_reporting 6 | . . . . . . . . . 1 . . . 2 . . 1 2 . . . . . . . . . . map_route 2 | . . . . . . . . . . . 1 . . . . . . . 1 . . . . . . . . mark_security 1 | . . . . . . . . . . . 1 . . . . . . . . . . . . . . . . find_garrison 1 | . . . . . . . . . . . 1 . . . . . . . . . . . . . . . . link_fov 1 | . . . . . . . . . . . 1 . . . . . . . . . . . . . . . . scatter_targeting 1 | . . . . . . . . . . . 1 . . . . . . . . . . . . . . . . mark_system 2 | . . . . . . . . . . . . . 1 . . 1 . . . . . . . . . . . disrupt_area 1 | . . . . . . . . . . . . . . . . . . 1 . . . . . . . . . spike_heat 1 | . . . . . . . . . . . . . . . . . 1 . . . . . . . . . . amplify_resonance 21 | . . . . . . . . . . 3 3 4 . . . 1 6 4 . . . . . . . . . disable_weapons 2 | . . . . . . . . . . 1 . . . . . . . 1 . . . . . . . . . reboot_system 2 | . . . . . . . . . . . 1 . 1 . . . . . . . . . . . . . . go_dormant 1 | . . . . . . . . . . . . 1 . . . . . . . . . . . . . . . overwrite_iff 16 | . . . . . . . . . 1 3 1 2 . . . 4 2 1 2 . . . . . . . . formatsys_low 6 | . . . . . . . . . 1 . 1 1 . . . . 3 . . . . . . . . . . formatsys_high 42 | . . . . . . . . 3 5 6 3 9 1 . . . 4 8 3 . . . . . . . . formatsys_deep 1 | . . . . . . . . . . . . . . . . . . . 1 . . . . . . . . Relay Couplers Released 75 | . . . . . . 10 . 7 . 15 2 18 . . . . 2 16 . . . . 3 2 . . . Ejected 3 | . . . . . . . . . . . . . . . . . . . . . . . 3 . . . . Machine Destruction 72 | . . . . . . 10 . 7 . 15 2 18 . . . . 2 16 . . . . . 2 . . . Attached 50 | . . . . . . . . 5 3 6 6 6 1 . . 1 5 9 3 2 . . 3 . . . . Merged Code Value 100 | . . . . . . . . . . . 5 58 . . . . . 27 . . . . . 10 . . . Fabnet Peak Effective % . | . . . . . . . . . . . . . . . . . . . . . . . . . . . . Robots Rewired 17 | . . . . . . . . 2 . 6 . . 7 . . . . 2 . . . . . . . . . Allies Hacked 4 | . . . . . . . . . 2 . . 1 . . . . . 1 . . . . . . . . . Hacks Repelled . | . . . . . . . . . . . . . . . . . . . . . . . . . . . . Allies | -11 -10 -10 -10 -9 -8 -8 -8 -8 -7 -7 -6 -6 -6 -6 -6 -6 -5 -5 -4 -4 -3 -3 -2 -2 -2 -1 -1 -------- Run | Yrd Mat Min Exi Min Mat Gar Mat Gar Fac Gar Fac Gar Ext Cet Arc Hub Fac Gar Fac Gar Res DSF Res Qua Sec Acc Com Total Allies 162 | . . . . 3 1 . . 5 7 15 5 12 21 5 . 5 17 17 18 . . . . 1 1 13 16 Largest Group 20 | . . . . 3 2 1 . 4 2 7 6 5 20 18 14 13 6 8 6 . . . . 1 . 6 5 Highest-Rated Group 909 | . . . . 40 32 26 . 100 48 162 187 123 642 909 672 493 215 348 286 . . . . 69 . 86 71 Highest-Rated Ally 159 | . . . . 16 26 26 . 39 34 39 47 47 159 159 130 96 54 99 80 . . . . 69 . 15 15 Total Orders 125 | . . . . . 2 7 . 2 2 12 4 17 32 4 2 3 2 35 1 . . . . . . . . STAY 53 | . . . . . 1 4 . 1 1 6 1 6 11 2 1 3 . 16 . . . . . . . . . ROAM 3 | . . . . . . . . . . . . . 1 . . . . 2 . . . . . . . . . FOLLOW 36 | . . . . . 1 3 . 1 1 6 1 6 8 1 1 . . 7 . . . . . . . . . AID 33 | . . . . . . . . . . . 2 5 12 1 . . 2 10 1 . . . . . . . . Ally Attacks 937 | . . . . . 33 . . 29 36 62 112 45 110 77 27 80 62 172 89 . . . . 3 . . . Total Damage 24683 | . . . . . 409 . . 549 531 1655 3052 1011 2892 2491 818 3185 924 4867 2201 . . . . 98 . . . Kills 172 | . . . . . 2 . . 8 7 18 21 5 20 12 4 20 9 28 18 . . . . . . . . Allies Corrupted 6 | . . . . . . . . . 1 . 1 . . . . 3 . 1 . . . . . . . . . Allies Melted 2 | . . . . . . . . . . . . 1 . . . . . 1 . . . . . . . . . Field Lobotomies 5 | . . . . . . . . . . . . . . . . . . . 5 . . . . . . . . Intel | -11 -10 -10 -10 -9 -8 -8 -8 -8 -7 -7 -6 -6 -6 -6 -6 -6 -5 -5 -4 -4 -3 -3 -2 -2 -2 -1 -1 ------- Run | Yrd Mat Min Exi Min Mat Gar Mat Gar Fac Gar Fac Gar Ext Cet Arc Hub Fac Gar Fac Gar Res DSF Res Qua Sec Acc Com Robot Analysis Total 5 | . 2 . . . 1 . . . . . . . . . . 2 . . . . . . . . . . . Derelict Logs Recovered 3 | . . 2 . 1 . . . . . . . . . . . . . . . . . . . . . . . Drone Launches . | . . . . . . . . . . . . . . . . . . . . . . . . . . . . Drone Recoveries . | . . . . . . . . . . . . . . . . . . . . . . . . . . . . Exploration | -11 -10 -10 -10 -9 -8 -8 -8 -8 -7 -7 -6 -6 -6 -6 -6 -6 -5 -5 -4 -4 -3 -3 -2 -2 -2 -1 -1 ------------- Run | Yrd Mat Min Exi Min Mat Gar Mat Gar Fac Gar Fac Gar Ext Cet Arc Hub Fac Gar Fac Gar Res DSF Res Qua Sec Acc Com Turns Passed 31443 | 79 747 1219 675 648 2763 946 891 1648 1484 1623 1761 1776 3264 616 881 1866 2561 2589 758 91 13 79 131 530 395 133 1276 Spaces Moved 16104 | 46 270 489 281 260 1319 384 444 684 597 708 822 763 1354 217 120 805 1047 1220 398 130 26 124 242 1217 933 306 898 Core 348 | 4 . . . . . . . . . . . . . . . . . . 132 130 26 56 . . . . . Treads 1404 | 42 270 489 281 260 62 . . . . . . . . . . . . . . . . . . . . . . Legs 1711 | . . . . . . . . . . . . . . . . . . . . . . . . . 507 306 898 Wheels 10688 | . . . . . 1257 384 444 684 597 708 822 763 1354 217 120 805 1047 1220 266 . . . . . . . . Hover . | . . . . . . . . . . . . . . . . . . . . . . . . . . . . Flight 1953 | . . . . . . . . . . . . . . . . . . . . . . 68 242 1217 426 . . Fastest Speed 22 | 50 160 240 240 240 165 165 175 165 175 175 190 190 190 190 205 190 160 160 50 50 50 29 22 27 27 30 30 Average Speed 152 | 150 237 240 240 240 181 179 179 190 208 188 193 193 190 201 205 204 186 165 141 51 50 40 22 27 30 30 30 Slowest Speed 2450 | 160 240 240 240 240 240 180 180 235 250 190 205 205 205 205 205 205 280 205 2450 200 50 50 27 29 34 30 30 Overloaded Moves . | . . . . . . . . . . . . . . . . . . . . . . . . . . . . Propulsion Burnouts . | . . . . . . . . . . . . . . . . . . . . . . . . . . . . Robots Hopped 20 | . . . . . . . . . . . . . . . . . . . . . . 1 5 11 3 . . Cave-ins Triggered . | . . . . . . . . . . . . . . . . . . . . . . . . . . . . Teleports 3 | . . . . . . . . . . . . . . . . . . . . . . . . 2 1 . . Exploration Rate (%) 53 | 4 55 96 70 65 80 50 24 64 24 80 36 79 87 70 79 70 33 95 12 26 2 94 8 93 71 8 32 Regions Visited 27 Branch Regions 10 Pre-discovered Areas 3 | . 1 . 1 1 . . . . . . . . . . . . . . . . . . . . . . . Known Exits Taken 8 | . . . . . 1 . 1 . 1 . 1 . . . . . 1 . 1 . 1 . 1 . . . . Unknown Exits Taken 12 | 1 1 1 1 1 . . . . . . . . 1 1 1 1 . . . . . . . 1 1 1 . Scrap Searched 2 | . . 1 . 1 . . . . . . . . . . . . . . . . . . . . . . . Spaces Dug 121 | . . . . . 7 17 . 5 . . . . 3 . . 7 12 . . . . . 4 18 13 35 . Terrain Destroyed 648 | . . . . . 95 17 6 5 6 8 11 7 26 13 11 15 35 7 73 34 . 50 8 21 21 46 133 Melee 19 | . . . . . 4 . . 2 . . . . 3 . . . . . . . . . . 7 3 . . Projectile 365 | . . . . . 16 . 6 3 6 8 11 7 3 13 11 15 31 7 9 . . . 8 14 18 46 133 AOE 264 | . . . . . 75 17 . . . . . . 20 . . . 4 . 64 34 . 50 . . . . . Terrain Rammed 1 | . . . . . . . . . . . . . . . . . . . . . . . . . 1 . . Walls Destroyed . | . . . . . . . . . . . . . . . . . . . . . . . . . . . . Machines Disabled 1 | . . . . . . . . . . . . . . . . . . . . . . . . . 1 . . Actions | -11 -10 -10 -10 -9 -8 -8 -8 -8 -7 -7 -6 -6 -6 -6 -6 -6 -5 -5 -4 -4 -3 -3 -2 -2 -2 -1 -1 --------- Run | Yrd Mat Min Exi Min Mat Gar Mat Gar Fac Gar Fac Gar Ext Cet Arc Hub Fac Gar Fac Gar Res DSF Res Qua Sec Acc Com Total 21502 | 53 348 511 283 279 1564 533 497 935 772 901 919 976 1998 373 731 979 1472 1680 507 151 25 146 291 1333 994 334 1917 Wait 3305 | . 50 1 . 5 121 16 20 106 89 50 9 84 547 118 592 109 179 214 17 . . . 28 51 7 7 885 Move 16044 | 45 269 488 280 259 1319 383 444 683 597 707 822 762 1353 216 119 804 1047 1219 398 129 25 121 231 1196 926 305 897 Hop 18 | . . . . . . . . . . . . . . . . . . . . . . 1 5 9 3 . . Pick Up 195 | 2 5 6 3 4 17 19 4 21 10 15 4 8 2 5 2 6 14 25 3 1 . 3 1 4 1 1 9 Fast Attach 104 | 6 2 . . 1 6 1 . 3 6 1 1 1 2 4 . 3 8 4 5 1 . 9 7 12 13 3 5 Attach 96 | . . 1 . . 2 4 . 8 4 5 5 6 . 1 . 7 15 5 11 2 . 5 1 2 3 1 8 Detach 33 | . 1 . . . 2 . . . 3 . . . 1 1 . 2 3 3 5 . . 3 . 2 2 2 3 Swap 167 | . 2 . . 6 18 16 2 25 6 12 12 12 10 2 1 6 15 15 5 . . . . . . . 2 Drop 146 | . 2 . . 1 11 13 5 11 12 12 3 . . 11 2 2 10 18 2 1 . 2 . 8 4 1 15 Fire 1066 | . 17 11 . . 61 51 21 36 44 74 63 71 29 15 15 40 174 108 61 2 . 2 18 30 16 14 93 Melee 92 | . . . . . 6 4 . 38 . 3 . 4 6 . . . 4 . . . . . . 19 8 . . Ram 2 | . . . . . 1 . . . . . . . . . . . . . . . . . . . 1 . . Kick . | . . . . . . . . . . . . . . . . . . . . . . . . . . . . Crush 7 | . . 4 . 3 . . . . . . . . . . . . . . . . . . . . . . . Escape Stasis 154 | . . . . . . 26 . . . 16 . 24 16 . . . . 47 . 15 . . . . 10 . . Rewire 70 | . . . . . . . . 2 1 6 . 4 32 . . . 3 22 . . . . . . . . . Trap 3 | . . . . . . . 1 2 . . . . . . . . . . . . . . . . . . . Miscellaneous . | . . . . . . . . . . . . . . . . . . . . . . . . . . . . Route ------- -11/Scrapyard -10/Materials -10/Mines (discovered 3 exits: [*Mat x2] / *Exi) -10/Exiles -9/Mines -8/Materials (discovered 4 exits: *Fac x3 / Gar) -8/Garrison (discovered 3 exits: *Mat x3) -8/Materials -8/Garrison (discovered 3 exits: *Fac x3) -7/Factory (discovered 3 exits: *Fac / [*Low] / Gar) -7/Garrison (discovered 3 exits: *Fac x3) -6/Factory (discovered 2 exits: *Fac / Gar) -6/Garrison (discovered 3 exits: *Ext x3) -6/Extension (discovered 2 exits: *Fac / *Cet) -6/Cetus (discovered 2 exits: *Fac / [*Arc]) -6/Archives (discovered 3 exits: *Fac / *Hub x2) -6/Hub_04(d) (discovered 2 exits: *Fac x2) -5/Factory -5/Garrison (discovered 3 exits: *Fac x3) -4/Factory (discovered 3 exits: *Res x2 / Gar) -4/Garrison -3/Research -3/DSF -2/Research (discovered 2 exits: *Qua x2) -2/Quarantine -2/Section 7 -1/Access -1/Command (discovered 2 exits: [*Sur x2]) To Fleet Rendezvous History --------- Turn | Location | Event 10 | -11/Scrapyard | Discovered new exit (range 16) 80 | -11/Scrapyard | Entered Materials 317 | -10/Materials | Build established: Mutant 606 | -10/Materials | Discovered new exit (range 16) 673 | -10/Materials | Repaired Lgt. Treads 827 | -10/Materials | Entered Mines 827 | -10/Mines | Discovered new exit (range 6) 868 | -10/Mines | Met a Derelict bent on vengeance 1318 | -10/Mines | Found a hidden stash of uninstalled traps 1393 | -10/Mines | Learned Materials terminal intel 1642 | -10/Mines | Discovered new exit (range 8) 1916 | -10/Mines | Learned 4 Materials zone layouts 2034 | -10/Mines | Deemed a non-threat by the Exiles lab entrance 2036 | -10/Mines | Discovered new exit (range 5) 2046 | -10/Mines | Entered Exiles 2106 | -10/Exiles | Met 8R-AWN 2145 | -10/Exiles | Met EX-HEX 2210 | -10/Exiles | Met EX-BIN 2241 | -10/Exiles | Aligned with FarCom system 2243 | -10/Exiles | Given EX-Vault access code 2301 | -10/Exiles | Opened EX-Vault 2315 | -10/Exiles | Found Field Lobotomy Kit 2331 | -10/Exiles | Found Gui. Plasma Cannon 2392 | -10/Exiles | Warned to stay clear of 0b10 Research branches 2459 | -10/Exiles | Met EX-DEC 2478 | -10/Exiles | Learned location of Zion (-6) 2702 | -10/Exiles | Discovered new exit (range 10) 2721 | -10/Exiles | Stole two prototypes: Gui. Plasma Cannon, Field Lobotomy Kit 2721 | -10/Exiles | Entered Mines 2777 | -9/Mines | Assisted by bots powering up and referring to "LRC-V3" 3111 | -9/Mines | Met a Derelict who couldn't figure out how to use a Trap Extractor 3146 | -9/Mines | Received a Rocket Launcher from a helpful Derelict 3160 | -9/Mines | Assembled infested the area 3165 | -9/Mines | Assisted by a Guerilla fighting off Assembled 3329 | -9/Mines | Discovered new exit (range 13) 3367 | -9/Mines | System corruption reached 10% 3369 | -9/Mines | Entered Materials 3369 | -8/Materials | Accompanied by 2 allies 3369 | -8/Materials | Evolved 4 slots: Utility x4 3370 | -8/Materials | Identified exit to Factory 3371 | -8/Materials | Loaded intel: 12 terminal locations 3654 | -8/Materials | Garrison activated, responded to threat 3696 | -8/Materials | Lost 3 allies 3858 | -8/Materials | Build established: Hauler-Mutant 4404 | -8/Materials | Discovered exit to Factory (range 7) 4668 | -8/Materials | Repaired Gauss Cannon 6132 | -8/Materials | Identified exit to Garrison 6132 | -8/Materials | Entered Garrison 6132 | -8/Garrison | Accompanied by 1 ally 6152 | -8/Garrison | Triggered checkpoint 6174 | -8/Garrison | Discovered new exit (range 64) 6174 | -8/Garrison | Discovered new exit (range 89) 6174 | -8/Garrison | Discovered new exit (range 64) 6224 | -8/Garrison | Triggered checkpoint 6291 | -8/Garrison | Garrison Relay disabled 6325 | -8/Garrison | Installed Relay Interface Framework 6702 | -8/Garrison | Triggered checkpoint 6755 | -8/Garrison | Build established: Bothacker-Mutant 6856 | -8/Garrison | Lost 3 parts (2u1w) 7028 | -8/Garrison | Garrison Relay disabled 7078 | -8/Garrison | Entered Materials 7969 | -8/Materials | Identified exit to Garrison 7969 | -8/Materials | Entered Garrison 8013 | -8/Garrison | Triggered checkpoint 8068 | -8/Garrison | Garrison Relay disabled 8138 | -8/Garrison | Expanded RIF knowledge: Zone Cloak 8181 | -8/Garrison | Triggered checkpoint 8512 | -8/Garrison | Discovered exit to Factory (range 8) 8521 | -8/Garrison | Triggered checkpoint 8535 | -8/Garrison | Discovered exit to Factory (range 49) 8535 | -8/Garrison | Discovered exit to Factory (range 7) 8535 | -8/Garrison | Discovered exit to Factory (range 69) 8566 | -8/Garrison | Learned Factory security intel 8696 | -8/Garrison | Core integrity fell below 50% 8859 | -8/Garrison | Triggered checkpoint 8964 | -8/Garrison | Expanded RIF knowledge: Signal Jamming 9256 | -8/Garrison | P-60 Hacker assimilated allied Defender 3b 9297 | -8/Garrison | Lost 3 parts (1n1u1w) 9369 | -8/Garrison | Spotted B-75 Beast 9567 | -8/Garrison | Garrison Relay disabled 9617 | -8/Garrison | Entered Factory 9617 | -7/Factory | Accompanied by 1 ally 9617 | -7/Factory | Evolved 2 slots: Utility x1, Weapon x1 9619 | -7/Factory | FarCom data flow suspended 9984 | -7/Factory | Discovered new exit (range 16) 10719 | -7/Factory | Discovered new exit (range 16) 10725 | -7/Factory | Build established: Bothacker-Tank 10923 | -7/Factory | Garrison activated, responded to threat 11014 | -7/Factory | Fabricated Remote Force Field? 11023 | -7/Factory | Repaired Broken System Restoration Module 11101 | -7/Factory | Identified exit to Garrison 11101 | -7/Factory | Entered Garrison 11101 | -7/Garrison | Accompanied by 1 ally 11147 | -7/Garrison | Triggered checkpoint 11196 | -7/Garrison | Garrison Relay disabled 11371 | -7/Garrison | Triggered checkpoint 11383 | -7/Garrison | Triggered checkpoint 11445 | -7/Garrison | Lost 5 allies 11652 | -7/Garrison | Discovered new exit (range 10) 11673 | -7/Garrison | Triggered checkpoint 11737 | -7/Garrison | Garrison Relay disabled 11889 | -7/Garrison | Triggered checkpoint 11964 | -7/Garrison | Expanded RIF knowledge: Code Merge 12013 | -7/Garrison | Triggered checkpoint 12048 | -7/Garrison | Garrison Relay disabled 12080 | -7/Garrison | P-60 Hacker assimilated allied Guardian 4e 12191 | -7/Garrison | Discovered new exit (range 12) 12345 | -7/Garrison | Discovered new exit (range 14) 12579 | -7/Garrison | Triggered checkpoint 12614 | -7/Garrison | Build established: Botlord-Tank 12622 | -7/Garrison | Garrison Relay disabled 12724 | -7/Garrison | Entered Factory 12724 | -6/Factory | Accompanied by 5 allies 12724 | -6/Factory | Evolved 2 slots: Power x1, Utility x1 13424 | -6/Factory | First assault squad dispatched 13476 | -6/Factory | Discovered new exit (range 12) 13683 | -6/Factory | Lost 5 allies 14261 | -6/Factory | Fabricated Wave Gun? 14451 | -6/Factory | Garrison activated, responded to threat 14485 | -6/Factory | Identified exit to Garrison 14485 | -6/Factory | Entered Garrison 14485 | -6/Garrison | Accompanied by 2 allies 14542 | -6/Garrison | Expanded RIF knowledge: Zone Cloak 14558 | -6/Garrison | Garrison Relay disabled 14597 | -6/Garrison | Triggered checkpoint 14683 | -6/Garrison | Lost 3 allies 14772 | -6/Garrison | P-70 Sage assimilated allied Veteran 5a 14800 | -6/Garrison | P-70 Sage assimilated allied Smith 5a 15019 | -6/Garrison | Expanded RIF knowledge: Autooverride 15135 | -6/Garrison | Triggered checkpoint 15138 | -6/Garrison | Triggered checkpoint 15164 | -6/Garrison | Triggered checkpoint 15167 | -6/Garrison | Triggered checkpoint 15223 | -6/Garrison | Lost 5 allies 15457 | -6/Garrison | Discovered new exit (range 11) 15531 | -6/Garrison | Garrison Relay disabled 15641 | -6/Garrison | Build established: Botlord-Gunner 15754 | -6/Garrison | Discovered new exit (range 3) 15787 | -6/Garrison | Triggered checkpoint 15811 | -6/Garrison | Garrison Relay disabled 16051 | -6/Garrison | Garrison Relay disabled 16138 | -6/Garrison | Discovered new exit (range 15) 16169 | -6/Garrison | Learned Extension security intel 16261 | -6/Garrison | Entered Extension 16261 | -6/Extension | Accompanied by 5 allies 16402 | -6/Extension | Build established: Botlord-Tank 17278 | -6/Extension | Repaired Remote Force Field 17523 | -6/Extension | Rescued a captive Derelict 17524 | -6/Extension | Rescued a captive Derelict 17592 | -6/Extension | Rescued a captive Derelict 17594 | -6/Extension | Rescued a captive Derelict 17715 | -6/Extension | Rescued a captive Derelict 17716 | -6/Extension | Rescued a captive Derelict 17735 | -6/Extension | Rescued A7 17891 | -6/Extension | Build established: Botlord-Mutant 17961 | -6/Extension | Spotted B-75 Beast 17973 | -6/Extension | Allies destroyed B-75 Beast 17976 | -6/Extension | Spotted B-75 Beast 18001 | -6/Extension | Allies destroyed B-75 Beast 18029 | -6/Extension | Lost 5 allies 18281 | -6/Extension | Rescued a captive Derelict 18458 | -6/Extension | Rescued a captive Derelict 18814 | -6/Extension | Build established: Botlord-Tank 19285 | -6/Extension | Rescued a captive Derelict 19285 | -6/Extension | Rescued a captive Derelict 19479 | -6/Extension | Discovered new exit (range 10) 19481 | -6/Extension | Discovered new exit (range 6) 19525 | -6/Extension | Entered Cetus 19525 | -6/Cetus | Accompanied by 18 allies (A7) 19530 | -6/Cetus | Acquired a Cetus Manufacturing Module code from A7 19551 | -6/Cetus | Build established: Botlord-Mutant 19554 | -6/Cetus | Spotted Cetus Guard 19554 | -6/Cetus | Spotted Cetus Guard 19557 | -6/Cetus | Spotted Cetus Guard 19557 | -6/Cetus | Spotted Cetus Guard 19567 | -6/Cetus | Allies destroyed Cetus Guard 19570 | -6/Cetus | Allies destroyed Cetus Guard 19574 | -6/Cetus | Allies destroyed Cetus Guard 19579 | -6/Cetus | Allies destroyed Cetus Guard 19608 | -6/Cetus | Lost 4 allies 19839 | -6/Cetus | Started Cetus Manufacturing Module 19854 | -6/Cetus | Escorted A7 to Cetus Mainframe 19864 | -6/Cetus | Manufactured an Enhanced Grunt 19884 | -6/Cetus | Discovered new exit (range 15) 19889 | -6/Cetus | Manufactured an Enhanced Grunt 19914 | -6/Cetus | Manufactured an Enhanced Grunt 19939 | -6/Cetus | Manufactured an Enhanced Grunt 19964 | -6/Cetus | Manufactured an Enhanced Grunt 20021 | -6/Cetus | Spotted Cetus Guard 20022 | -6/Cetus | Spotted Cetus Guard 20025 | -6/Cetus | Spotted Cetus Guard 20025 | -6/Cetus | Spotted Cetus Guard 20028 | -6/Cetus | Allies destroyed Cetus Guard 20037 | -6/Cetus | Allies destroyed Cetus Guard 20037 | -6/Cetus | Allies destroyed Cetus Guard 20037 | -6/Cetus | Allies destroyed Cetus Guard 20042 | -6/Cetus | Discovered new exit (range 15) 20054 | -6/Cetus | Met Revision 17 20068 | -6/Cetus | Lost 3 allies 20141 | -6/Cetus | Entered Archives 20141 | -6/Archives | Accompanied by 14 allies (A7) 20146 | -6/Archives | Received a hacking code to weaken MAIN.C 20191 | -6/Archives | Discovered new exit (range 16) 20218 | -6/Archives | Discovered new exit (range 15) 20499 | -6/Archives | Build established: Botlord-Tank 20761 | -6/Archives | Discovered new exit (range 16) 21022 | -6/Archives | Entered Hub_04(d) 21022 | -6/Hub_04(d) | Accompanied by 12 allies 21170 | -6/Hub_04(d) | Discovered new exit (range 5) 21280 | -6/Hub_04(d) | Garrison activated, responded to threat 21578 | -6/Hub_04(d) | Discovered new exit (range 6) 22116 | -6/Hub_04(d) | Network Hub disabled 22148 | -6/Hub_04(d) | Lost 5 allies 22177 | -6/Hub_04(d) | Network Hub disabled 22214 | -6/Hub_04(d) | Network Hub disabled 22229 | -6/Hub_04(d) | Spotted Lightning 22229 | -6/Hub_04(d) | Spotted Lightning 22229 | -6/Hub_04(d) | Spotted Lightning 22278 | -6/Hub_04(d) | System corruption reached 10% 22294 | -6/Hub_04(d) | Destroyed Lightning 22294 | -6/Hub_04(d) | Destroyed Lightning 22319 | -6/Hub_04(d) | Destroyed Lightning 22327 | -6/Hub_04(d) | Found Prototype Device 22327 | -6/Hub_04(d) | Identified Exp. EM Disruption Field 22346 | -6/Hub_04(d) | Lost 8 parts (1p1n3u3w) 22348 | -6/Hub_04(d) | Found Exp. EM Disruption Field 22624 | -6/Hub_04(d) | Build established: Botlord-Mutant 22750 | -6/Hub_04(d) | Spotted Lightning 22825 | -6/Hub_04(d) | Identified exit to Garrison 22844 | -6/Hub_04(d) | Spotted Lightning 22847 | -6/Hub_04(d) | Spotted Lightning 22888 | -6/Hub_04(d) | Entered Factory 22888 | -5/Factory | Evolved 2 slots: Propulsion x1, Utility x1 23492 | -5/Factory | Build established: Botlord-Tank 23567 | -5/Factory | Lost 3 allies 24719 | -5/Factory | Lost 4 allies 24762 | -5/Factory | System corruption reached 10% 24808 | -5/Factory | Lost 3 parts (1p1n1w) 25027 | -5/Factory | Repaired Broken Arm. Huge Wheel 25063 | -5/Factory | Repaired Imp. Remote Force Field 25361 | -5/Factory | Fabricated M-28 Smith (x1) 25449 | -5/Factory | Identified exit to Garrison 25449 | -5/Factory | Entered Garrison 25449 | -5/Garrison | Accompanied by 5 allies 25475 | -5/Garrison | P-70 Sage assimilated hostile S-27 Virus 25505 | -5/Garrison | Spotted Executioner 25518 | -5/Garrison | Allies destroyed Executioner 25559 | -5/Garrison | Rewired Striker 25599 | -5/Garrison | Triggered checkpoint 25620 | -5/Garrison | Garrison Relay disabled 25905 | -5/Garrison | Spotted B-75 Beast 25932 | -5/Garrison | Allies destroyed B-75 Beast 25978 | -5/Garrison | Rewired B-75 Beast 26132 | -5/Garrison | Triggered checkpoint 26155 | -5/Garrison | Triggered checkpoint 26421 | -5/Garrison | Triggered checkpoint 26494 | -5/Garrison | Discovered new exit (range 13) 26619 | -5/Garrison | Learned Factory security intel 26695 | -5/Garrison | Triggered checkpoint 26706 | -5/Garrison | Garrison Relay disabled 26778 | -5/Garrison | Spotted B-75 Beast 26813 | -5/Garrison | Assimilated Beast 6b with formatsys_high 26855 | -5/Garrison | Lost 4 allies 27087 | -5/Garrison | Triggered checkpoint 27135 | -5/Garrison | Triggered checkpoint 27142 | -5/Garrison | Expanded RIF knowledge: Coupler Efficiency 27183 | -5/Garrison | Discovered new exit (range 13) 27263 | -5/Garrison | Triggered checkpoint 27268 | -5/Garrison | Garrison Relay disabled 27441 | -5/Garrison | Triggered checkpoint 27524 | -5/Garrison | Discovered new exit (range 3) 27560 | -5/Garrison | Garrison Relay disabled 27694 | -5/Garrison | Rescued a captive Derelict 28038 | -5/Garrison | Entered Factory 28038 | -4/Factory | Accompanied by 5 allies 28038 | -4/Factory | Evolved 2 slots: Utility x2 28045 | -4/Factory | Discovered new exit (range 8) 28088 | -4/Factory | Discovered new exit (range 162) 28130 | -4/Factory | Garrison activated, responded to threat 28244 | -4/Factory | Fabricated R-06 Scavenger (x1) 28288 | -4/Factory | First assault squad dispatched 28344 | -4/Factory | Lost 4 allies 28397 | -4/Factory | System corruption reached 10% 28454 | -4/Factory | Assimilated ARC 7a with formatsys_deep 28606 | -4/Factory | Assimilated P-70 Sage with FLK Orb 28610 | -4/Factory | Assimilated L-61 Swordsman with FLK Orb 28615 | -4/Factory | Assimilated G-67 Veteran with FLK Orb 28619 | -4/Factory | Assimilated X-72 Disruptor with FLK Orb 28623 | -4/Factory | Assimilated G-73 Enforcer with FLK Orb 28658 | -4/Factory | Lost 5 parts (1p2n2w) 28676 | -4/Factory | Lost 12 allies 28711 | -4/Factory | Lost 3 parts (2u1w) 28725 | -4/Factory | Released all parts (3) 28784 | -4/Factory | Found Prototype Device 28784 | -4/Factory | Identified Exp. ECM Suite 28796 | -4/Factory | Identified exit to Garrison 28796 | -4/Factory | Entered Garrison 28842 | -4/Garrison | Triggered checkpoint 28843 | -4/Garrison | Found Fusion Bomb Launcher 28854 | -4/Garrison | Found Fusion Bomb Launcher 28869 | -4/Garrison | Spotted B-86 Titan 28872 | -4/Garrison | Triggered checkpoint 28883 | -4/Garrison | Discovered new exit (range 8) 28887 | -4/Garrison | Entered Research 28887 | -3/Research | Evolved 2 slots: Propulsion x2 28900 | -3/Research | Identified exit to DSF 28900 | -3/Research | Entered DSF 28923 | -3/DSF | Additional patrols routed to DSF 28961 | -3/DSF | Discovered new exit (range 15) 28979 | -3/DSF | Entered Research 28979 | -2/Research | Evolved 2 slots: Propulsion x2 28991 | -2/Research | Lost 5 parts (2n3u) 29072 | -2/Research | Identified exit to Quarantine 29110 | -2/Research | Entered Quarantine 29123 | -2/Quarantine | Found Alien Artifact 29123 | -2/Quarantine | Identified Phase Redirector 29141 | -2/Quarantine | Cryocooling Duct disabled 29156 | -2/Quarantine | Ambient heat levels rising (+20) 29156 | -2/Quarantine | Non-combat units ordered to evacuate 29199 | -2/Quarantine | Spotted Alpha 7 29203 | -2/Quarantine | Build established: Hacker-Sprinter 29214 | -2/Quarantine | Found Alien Artifact 29224 | -2/Quarantine | Discovered new exit (range 12) 29230 | -2/Quarantine | Found Alien Artifact 29230 | -2/Quarantine | Identified Transdimensional Reconstructor 29230 | -2/Quarantine | Warped through subspace 29269 | -2/Quarantine | Found Transdimensional Reconstructor 29271 | -2/Quarantine | Found Transdimensional Reconstructor 29271 | -2/Quarantine | Warped through subspace 29307 | -2/Quarantine | Found Alien Artifact 29307 | -2/Quarantine | Identified Terrabomb 29307 | -2/Quarantine | Used Terrabomb 29312 | -2/Quarantine | Found Terrabomb 29389 | -2/Quarantine | Found Alien Artifact 29389 | -2/Quarantine | Identified Subatomic Replicator 29417 | -2/Quarantine | Found Alien Slashing Weapon 29417 | -2/Quarantine | Identified Sigix Broadsword 29487 | -2/Quarantine | Found Alien Artifact 29487 | -2/Quarantine | Identified Core Reset Matrix 29487 | -2/Quarantine | Used Core Reset Matrix 29491 | -2/Quarantine | Detected hypermatrix surge 29491 | -2/Quarantine | Sensed 11 artifacts in vicinity 29522 | -2/Quarantine | Found Core Cannon 29617 | -2/Quarantine | Spotted Fortress 29639 | -2/Quarantine | Discovered new exit (range 6) 29640 | -2/Quarantine | Entered Section 7 29641 | -2/Section 7 | Sensed 21 artifacts in vicinity 29655 | -2/Section 7 | Found Prototype Processor 29655 | -2/Section 7 | Identified Exp. Core Analyzer 29688 | -2/Section 7 | Spotted B-90 Cyclops 29704 | -2/Section 7 | Scanned by Researcher 29712 | -2/Section 7 | Found Integrated Mediator 29712 | -2/Section 7 | Installed Integrated Mediator, increased core attachment efficiency 29753 | -2/Section 7 | Spotted Alpha 7 29774 | -2/Section 7 | Lost 3 parts (1n1u1w) 29820 | -2/Section 7 | Integrated with Sigix Exoskeleton 29852 | -2/Section 7 | Found Terrabomb 29864 | -2/Section 7 | Spotted Striker 29864 | -2/Section 7 | Spotted Striker 29876 | -2/Section 7 | Intercept squad dispatched 29879 | -2/Section 7 | Spotted B-99 Colossus 29891 | -2/Section 7 | Spotted Tracker 29893 | -2/Section 7 | Spotted Tracker 29906 | -2/Section 7 | Destroyed Tracker 29922 | -2/Section 7 | Destroyed Tracker 29925 | -2/Section 7 | Found Prototype Processor 29925 | -2/Section 7 | Identified Exp. Targeting Computer 29927 | -2/Section 7 | Used Terrabomb 29927 | -2/Section 7 | Spotted Combat Programmer 29929 | -2/Section 7 | Found LRC Inertial Stabilizer 29929 | -2/Section 7 | Installed LRC Inertial Stabilizer, increased mass support (+10) 29931 | -2/Section 7 | Found LRC Inertial Stabilizer 29931 | -2/Section 7 | Installed LRC Inertial Stabilizer, increased mass support (+10) 29940 | -2/Section 7 | Warped through subspace 29942 | -2/Section 7 | Spotted Combat Programmer 29947 | -2/Section 7 | Sigix Exoskeleton integrity reduced to 80% 29948 | -2/Section 7 | Core integrity fell below 50% 30028 | -2/Section 7 | Discovered new exit (range 18) 30035 | -2/Section 7 | Entered Access 30035 | -1/Access | Evolved 2 slots: Power x1, Utility x1 30040 | -1/Access | Emitted hypermatrix ping 30045 | -1/Access | Assembled emerged from beneath the floor 30111 | -1/Access | Found Unknown Device 30111 | -1/Access | Identified Quantum Capacitor 30120 | -1/Access | Assembled emerged from beneath the floor 30132 | -1/Access | Build established: Alien-Sigix 30153 | -1/Access | Discovered new exit (range 17) 30168 | -1/Access | Entered Command 30169 | -1/Command | Sensed 1 artifact in vicinity 30173 | -1/Command | Emitted hypermatrix ping 30178 | -1/Command | Assembled emerged from beneath the floor 30231 | -1/Command | Assembled emerged from beneath the floor 30316 | -1/Command | Spotted Combat Programmer 30326 | -1/Command | Spotted Combat Programmer 30344 | -1/Command | Destroyed Combat Programmer 30350 | -1/Command | Destroyed Combat Programmer 30378 | -1/Command | Spotted M Guard 30403 | -1/Command | Destroyed M Guard 30406 | -1/Command | Found Prototype Launcher 30406 | -1/Command | Identified Ragnarok Missile Launcher 30415 | -1/Command | Spotted M Guard 30445 | -1/Command | Destroyed M Guard 30445 | -1/Command | All MAIN.C guards destroyed 30467 | -1/Command | Met MAIN.C 30474 | -1/Command | 0b10 Conduit disabled 30476 | -1/Command | Sigix Exoskeleton integrity reduced to 60% 30509 | -1/Command | MAIN.C's shell transforms into a squad of autonomous robots 30509 | -1/Command | Destroyed MAIN.C Shell 30509 | -1/Command | Spotted M Shell/Def 30509 | -1/Command | Spotted M Shell/Atk 30509 | -1/Command | Spotted M Shell/Def 30509 | -1/Command | Spotted M Shell/Atk 30509 | -1/Command | Spotted M Shell/Atk 30509 | -1/Command | Spotted M Shell/Def 30509 | -1/Command | Spotted M Shell/Atk 30509 | -1/Command | Spotted M Shell/Def 30510 | -1/Command | Core integrity fell below 50% 30510 | -1/Command | MAIN.C activated Command garrisons 30522 | -1/Command | Sigix Exoskeleton integrity reduced to 40% 30537 | -1/Command | Discovered new exit (range 17) 30547 | -1/Command | Core integrity fell below 20% 30565 | -1/Command | Sigix Exoskeleton integrity reduced to 20% 30567 | -1/Command | Destroyed MAIN.C 30569 | -1/Command | Discovered new exit (range 2) 30569 | -1/Command | Discovered new exit (range 126) 30569 | -1/Command | Extracted map data and part IDs from MAIN.C's data core 31379 | -1/Command | Found Vortex Chain Reactor 31444 | *** | Heading to fleet! Last Messages --------------- 31168_ System corrupted: Component data lost. 31223_ System corrupted: Matter fused (-5). 31253_ System corrupted: Heat flow error (+204). 31331_ =71%KTTJZ%X 31375_ Beam penetrates Sealed Heavy Doors. 31375_ Sealed Heavy Doors breached. 31375_ Beam penetrates Sealed Heavy Doors. 31375_ Beam penetrates Earth. 31379_ Acquired Vortex Chain Reactor. 31396_ Acquired 15 matter. 31422_ Beam penetrates Wave Inhibitor. 31422_ Wave Inhibitor disabled. 31422_ Beam penetrates Wave Inhibitor. 31422_ Beam penetrates Wall. [Achievement: Winner's Signature] Map ----- +----------------------------------------------------+ | #### """"## ## T | | #### """"## ## #####+######## ""# | | """ #### """"######+#### ### #### ""# | | "R"" + + """"##### ### #][] = | | " "" #### ##### ### #]]] ] = | | #### ##### ### #!!! = | | #### ##### ### #!!! *== | | ########"######## ## " " ####"### | | + !!! ## "T" #### ### | | #### = !!! ## """ [#### ### | | ###" #"#####% !!! ## #### ### | | ########## # ####[ ######## #### ### | | ####!% ## ### #"#########+######## ### | | #### ### ### # ##### ### | | #### "## #" # ##### ### | | #### " ## # # ##### ### | | #### # [## # !! # ##### ### | | #### ## % ;# !! ###+#+##### ### | | #### ####* ; ! ### #####"### | | #### #####= ; !! ### ##### ### | | ####+##"####### ; [ !! ### #####"### | | # ###;= ! ### #####"""" | | + ####%*####% ### #####""" | | ###+### #### %;###= ### #####"""" | | ### ### #### * ## ### ######""" | | ### ### ] #### %X ## [! !^% ######" | | " " """""""""""###### %## %!=%! ######"" | | ### ###### ########### !=* ######"" | | ### ######= ########### = ###### " | | ## /%= ########### ^ !! ""###### " | | # #####! "! ""###### " | | # ##### +%! " ""######""" | | # ##### #!*%* %* """" T######"" | | #^^^##### !! # ######## """" ""###### | | #^^^##### !! # "####### "" "#### " | | # ##### ! "== #####"% % #""""" | | # #############!%! #####" =% | | # #############"!"####### ! | | ## ############## ######## %% | | ############## ######## #########""###% | | ############## ########################### | | ##############!########################### | | ##### ###!############################## | | ##### ###%############################## | | ##### ###!############################## | | ##### ###!############################## | | ##### ##" ### ################### | | ##### ! ##" ### ################### | | #"#"""##"+## %# ################### | | !%=%* # "" ################### | +----------------------------------------------------+ Best States ------------- Heat Dissipation 164 Energy Generation 97 Energy Capacity 800 Matter Stores 300 Matter Capacity 300 Sight Range 16 Robot Scan Range 15 Terrain Scan Density 10 Armor Coverage 450 Resistance: KI 50 Resistance: TH 50 Resistance: EX 50 Resistance: EM 75 Resistance: I 50 Resistance: S 50 Resistance: P 50 Power Shielding 66 Utility Shielding 66 Phase Shifting 15 Evasion (%) 72 Targeting Accuracy 16 Melee Accuracy 6 Core Analysis 8 Recoil Reduction 2 Offensive Hacking 26 Defensive Hacking 56 Relay Coupler Types 5 Relay Coupler Value 166 Trap Extractor Capacity 6 Item Schematics ----------------- Exp. Power Amplifier | -2/Section 7 | Archive Robot Schematics ------------------ G-73 Enforcer | -2/Section 7 | Archive Fabricated ------------ Remote Force Field | x2 | -7/Factory | Preloaded Wave Gun | x2 | -6/Factory | Preloaded M-28 Smith | x1 | -5/Factory R-06 Scavenger | x1 | -4/Factory | Preloaded Alien Tech Used ----------------- Phase Redirector Transdimensional Reconstructor Terrabomb Subatomic Replicator Sigix Broadsword Core Reset Matrix Integrated Mediator Core Cannon Sigix Exoskeleton Sigix Sheargun LRC Inertial Stabilizer Achievements -------------- Winner's Signature Challenges ------------ None Game ------ Seed PointyHardcellPlating Manual? 0 Play Time 03:56:19 Cumulative 367.0 hours Start 2024.05.07 @ 08:08:07 End 2024.05.08 @ 08:45:26 Sessions 13 Manual Loads 0 Difficulty Rogue Special Mode None Game No. 236 Rogue 236 Adventurer 0 Explorer 0 Win Type 2 Total 24 Types 16/2/3/1/1/0/0/1/0 Lore% 85 Gallery% 86 Achievement% 80 Wizard Run 0 Options --------- Layout 0 ASCII 0 Keyboard 1 Movement Numpad Keybinds 0 Fullscreen 2 Font 18/SmallcapsGlow Map View 76x50 Zoom Use 0% Tactical HUD 1 Map Filters NONE Filters NONE Steam 1 RUN: 59a5b217-44bd-4f5c-b8ce-ca5a02882087